bitfinex/quotes_ETHUSD_20260121
["timestamp","ask_amount","ask_price","bid_price","bid_amount"]
[1769039466331,0.002,2976.2,2974.8,10.64070711]
[1769039467750,0.002,2976.2,2974.9,0.99263912]
[1769039467953,0.002,2976.2,2975.1,0.99263912]
[1769039468329,0.002,2976.2,2974.8,14.00227763]
[1769039468330,1.00006893,2976.2,2974.8,6.72313659]
[1769039468540,1.00006893,2976.2,2974.9,0.556]
[1769039469220,1.00006893,2976.2,2975.0,6.72268906]
[1769039469418,0.002,2976.0,2975.0,6.72268906]
[1769039469855,0.002,2976.0,2975.0,10.08403359]
[1769039470021,0.002,2976.0,2975.1,0.09069076]
[1769039470753,0.002,2976.0,2975.0,10.98598195]
[1769039473642,0.002,2976.0,2975.0,11.07667271]
[1769039475085,0.002,2976.4,2975.1,0.90194836]
[1769039475387,0.002,2977.3,2975.7,0.09069076]
[1769039476268,0.002,2977.3,2975.7,0.99263912]
[1769039477770,0.002,2977.3,2975.8,10.983271]
[1769039480452,0.002,2977.3,2975.9,0.90194836]
[1769039480659,0.002,2977.3,2976.2,0.09069076]
[1769039480860,0.002,2977.3,2976.3,0.555]
[1769039481086,0.002,2977.3,2976.4,0.90194836]
[1769039481662,0.002,2977.3,2976.4,0.99263912]
[1769039481663,1e-08,2977.3,2976.4,0.99263912]
[1769039482057,1e-08,2977.3,2976.5,10.07895177]
[1769039482258,0.002,2977.5,2976.5,10.07895177]
[1769039482259,1e-08,2977.5,2976.6,0.90194836]
[1769039482466,0.002,2978.0,2976.8,0.09069076]
[1769039482667,0.002,2978.0,2976.9,0.90194836]
[1769039482987,1.00006893,2978.0,2977.0,0.555]
[1769039483370,0.002,2978.0,2977.0,0.555]
[1769039483696,0.002,2978.0,2977.1,0.555]
[1769039483697,1.00006893,2978.0,2977.1,0.555]
[1769039484190,1.43386836,2977.9,2977.1,0.555]
[1769039484402,0.99806893,2977.8,2975.6,0.90194836]
[1769039484601,0.99806893,2977.8,2974.8,0.09069076]
[1769039484602,1.08875969,2977.6,2975.2,0.90194836]
[1769039484788,1.08875969,2977.4,2975.3,0.555]
[1769039485290,0.99806893,2977.2,2975.3,3.36092939]
[1769039485492,0.99806893,2977.2,2974.8,4.26347156]
[1769039485493,0.99806893,2977.2,2975.4,3.91588726]
[1769039485660,0.09069076,2976.7,2974.8,3.36152338]
[1769039485862,0.99806893,2976.6,2974.9,0.555]
[1769039486094,0.99806893,2976.5,2975.0,6.72268906]
[1769039486496,0.99806893,2976.5,2975.0,3.36134453]
[1769039486997,0.99806893,2976.5,2975.1,0.555]
[1769039487989,0.99806893,2976.5,2974.7,3.36161459]
[1769039488286,1.08875969,2976.3,2974.6,0.555]
[1769039488466,0.99806893,2976.1,2974.6,0.555]
[1769039490096,0.99806893,2975.9,2974.6,0.555]
[1769039490297,0.99806893,2975.4,2973.6,3.36283012]
[1769039490487,0.09069076,2975.5,2973.2,0.003]
[1769039490488,0.09069076,2975.1,2973.2,0.003]
[1769039490699,0.99806893,2975.0,2973.3,0.555]
[1769039490910,0.99806893,2975.7,2973.9,3.36253896]
[1769039491402,0.99806893,2975.7,2973.5,1.08816593]
[1769039491571,0.99806893,2975.7,2974.2,3.3622003]
[1769039491901,0.99806893,2975.7,2974.1,3.36236064]
[1769039492300,0.90754527,2975.5,2974.2,3.36223289]
[1769039492504,0.90754527,2975.5,2974.2,6.72448156]
[1769039492898,0.90754527,2975.5,2974.2,3.36223289]
[1769039493206,0.90754527,2976.0,2974.2,6.72448156]
[1769039493901,1.67926645,2976.4,2974.3,0.99747517]
[1769039494113,1.67926645,2976.4,2974.6,0.09069076]
[1769039494298,4.26690292,2976.8,2974.7,11.08252576]
[1769039494612,0.90754527,2976.0,2974.6,3.36175216]
[1769039494819,0.90754527,2976.5,2974.6,10.08534524]
[1769039495676,0.90754527,2976.5,2974.6,11.08282041]
[1769039495873,0.90754527,2976.5,2974.7,0.99747517]
[1769039496306,4.26725446,2976.5,2974.8,6.72314104]
[1769039496479,0.90754527,2976.1,2974.6,3.36174648]
[1769039496676,0.99823603,2976.0,2974.5,3.36184735]
[1769039497313,0.43579452,2976.4,2974.7,10.08501679]
[1769039497518,0.90754527,2976.9,2974.9,0.99747517]
[1769039497813,0.90754527,2976.8,2974.9,0.99747517]
[1769039498112,0.90754527,2976.8,2974.7,13.44670032]
[1769039498113,0.99823603,2976.5,2975.0,0.556]
[1769039498313,0.99823603,2976.5,2975.1,6.7224631]
[1769039498481,0.99823603,2976.5,2975.1,3.36123155]
[1769039498882,0.09069076,2976.7,2975.1,6.7224631]
[1769039499691,0.99823603,2977.0,2975.1,10.08369465]
[1769039499892,0.99823603,2977.0,2975.1,11.08116982]
[1769039500492,0.90754527,2977.0,2975.1,14.44240137]
[1769039501323,0.90754527,2977.0,2975.1,11.08116982]
[1769039501688,0.90754527,2977.0,2975.2,0.99747517]
[1769039502987,0.09069076,2977.6,2975.0,3.91731102]
[1769039502988,0.09069076,2977.6,2975.4,0.99747517]
[1769039503223,0.002,2977.8,2975.4,1.08816593]
[1769039503394,0.002,2977.8,2975.5,0.99747517]
[1769039503721,0.002,2977.8,2975.7,0.99747517]
[1769039504840,0.002,2977.8,2975.6,0.09069076]
[1769039504841,0.002,2977.8,2976.1,0.99747517]
[1769039505042,0.002,2977.8,2976.3,0.99747517]
[1769039505800,0.002,2977.8,2976.3,1.08816593]
[1769039506121,0.002,2977.8,2976.5,0.99747517]
[1769039506322,0.002,2977.8,2976.6,0.555]
[1769039507033,0.002,2977.8,2976.7,0.555]
[1769039507237,0.09069076,2977.7,2976.1,3.36007379]
[1769039507400,0.99823603,2977.5,2976.0,0.555]
[1769039507608,0.99823603,2977.5,2975.7,0.555]
[1769039507609,0.99823603,2977.1,2975.7,0.555]
[1769039507843,0.90754527,2977.1,2975.9,3.36022703]
[1769039508051,0.09069076,2977.3,2976.0,3.36019966]
[1769039508533,0.90754527,2977.3,2975.8,3.36042552]
[1769039508735,0.90754527,2977.3,2975.9,3.36028064]
[1769039509044,0.90754527,2977.3,2975.8,3.36043973]
[1769039509253,0.09069076,2977.5,2975.8,6.72088061]
[1769039509425,0.90954527,2977.8,2975.8,10.08132149]
[1769039509630,0.90954527,2977.8,2975.9,0.99747517]
[1769039509826,0.002,2977.8,2975.9,0.99747517]
[1769039510531,0.99823603,2977.7,2976.0,0.555]
[1769039510731,0.90754527,2977.5,2976.0,0.555]
[1769039511108,0.90754527,2977.5,2976.1,6.72020428]
[1769039511813,0.90754527,2977.5,2976.1,3.36010214]
[1769039512141,4.26609233,2977.5,2976.1,3.36010214]
[1769039512445,4.26609233,2977.5,2976.0,3.91520072]
[1769039512642,0.83961686,2977.4,2976.0,3.91520072]
[1769039512845,0.002,2977.8,2976.0,3.91520072]
[1769039512846,0.90954527,2977.8,2976.0,3.91520072]
[1769039513015,0.002,2977.8,2976.0,11.63310599]
[1769039513217,0.002,2977.8,2976.1,0.99747517]
[1769039514020,0.002,2977.8,2976.1,1.08816593]
[1769039514315,0.002,2978.5,2977.3,1.08816593]
[1769039514515,0.002,2978.7,2977.6,0.99747517]
[1769039514716,0.002,2979.2,2977.8,0.99747517]
[1769039515021,0.002,2979.2,2977.9,6.71614224]
[1769039515348,0.002,2979.2,2978.0,0.555]
[1769039516746,0.002,2979.2,2978.0,0.64569076]
[1769039517045,0.002,2979.2,2978.0,1.64316593]
[1769039517635,0.002,2979.2,2978.1,10.0735368]
[1769039518544,0.002,2979.0,2978.2,1.08816593]
[1769039518934,2.09e-06,2979.2,2978.1,3.3578456]
[1769039519116,2.09e-06,2979.2,2978.2,0.555]
[1769039519922,2.09e-06,2979.2,2978.2,3.91269821]
[1769039520122,2.09e-06,2979.2,2978.2,0.555]
[1769039520654,2.09e-06,2979.2,2978.2,3.9127026]
[1769039520851,2.09e-06,2979.2,2978.2,0.555]
[1769039521355,2.09e-06,2979.2,2978.1,0.555]
[1769039522033,2.09e-06,2979.2,2978.1,3.9128289]
[1769039522930,2.09e-06,2979.2,2978.1,11.53278837]
[1769039523133,2.09e-06,2979.2,2978.2,1.92599415]
[1769039523332,2.09e-06,2979.2,2978.3,0.90426827]
[1769039523724,2.09e-06,2979.2,2978.5,3.35739466]
[1769039524042,2.09e-06,2979.2,2978.4,3.91246999]
[1769039524245,2.09e-06,2979.2,2978.5,0.555]
[1769039527663,2.09e-06,2979.2,2978.5,3.91239068]
[1769039527973,2.09e-06,2979.2,2978.5,7.26978534]
[1769039528161,2.09e-06,2979.2,2978.5,8.17405361]
[1769039528459,2.09e-06,2979.2,2978.5,11.53144827]
[1769039529226,2.09e-06,2979.2,2978.5,8.17405361]
[1769039529933,2.09e-06,2979.2,2978.5,11.53144827]
[1769039530146,0.002,2979.4,2978.6,0.09069076]
[1769039530552,0.94931141,2980.4,2979.3,0.09069076]
[1769039530553,0.002,2980.4,2979.3,0.09069076]
[1769039531166,0.002,2980.4,2977.2,0.90426827]
[1769039531167,1.03800217,2980.1,2977.2,0.90426827]
[1769039531352,0.09069076,2978.3,2976.7,3.35939171]
[1769039531552,0.09069076,2978.3,2976.8,0.555]
[1769039531742,1.03800217,2978.8,2976.8,0.555]
[1769039531942,1.03800217,2978.8,2976.8,0.64569076]
[1769039531943,0.94731141,2978.8,2976.8,0.64569076]
[1769039532147,0.94731141,2978.8,2976.8,0.555]
[1769039532473,0.94731141,2978.8,2976.9,0.555]
[1769039532966,0.94731141,2978.6,2977.0,6.71817264]
[1769039533161,4.30407213,2979.1,2977.1,0.09069076]
[1769039533365,4.30407213,2979.1,2977.1,0.99495903]
[1769039534074,0.94731141,2979.1,2977.1,0.99495903]
[1769039534266,0.94731141,2979.1,2977.3,0.09069076]
[1769039534467,6.71333291,2979.2,2977.3,0.09069076]
[1769039534671,0.33566414,2979.1,2977.1,0.99495903]
[1769039534969,0.33566414,2979.1,2977.2,10.07658201]
[1769039535482,3.6923854,2979.1,2977.2,10.07658201]
[1769039536046,3.6923854,2979.1,2977.2,6.71772134]
[1769039536248,0.36923854,2979.0,2977.2,6.71772134]
[1769039537678,8.03022634,2979.0,2977.2,6.71772134]
[1769039537979,8.03022634,2979.0,2977.1,0.555]
[1769039537980,0.94731141,2978.6,2977.1,0.555]
[1769039538146,0.94731141,2978.6,2977.0,0.555]
[1769039539087,0.94731141,2978.4,2977.0,0.555]
[1769039539297,0.94731141,2978.2,2976.8,0.555]
[1769039539805,0.94731141,2978.2,2976.2,0.001]
[1769039539806,1.03800217,2978.2,2976.2,0.001]
[1769039540009,1.03800217,2978.2,2976.5,0.555]
[1769039541289,0.94731141,2978.0,2976.5,0.555]
[1769039541494,1.71361167,2977.9,2976.5,0.555]
[1769039541693,0.94731141,2977.8,2976.5,0.555]
[1769039542007,1.03800217,2977.8,2976.2,0.001]
[1769039542413,1.03800217,2977.8,2977.0,0.001]
[1769039542583,1.12774165,2977.7,2976.2,1.91e-06]
[1769039543211,4.48614552,2977.7,2976.2,1.91e-06]
[1769039543508,4.48614552,2977.7,2976.2,3.35995674]
[1769039543799,4.48614552,2977.7,2976.2,6.71994598]
[1769039543970,0.44861455,2977.6,2976.2,3.35995674]
[1769039544171,0.94731141,2978.2,2976.3,0.90426827]
[1769039544406,4.30510915,2978.2,2976.3,0.90426827]
[1769039544566,0.94731141,2978.1,2976.4,0.555]
[1769039544766,0.76629069,2978.0,2976.4,0.555]
[1769039545164,0.76629069,2978.0,2976.5,6.71930118]
[1769039545364,0.94731141,2978.6,2976.5,10.07895177]
[1769039545600,6.71478932,2978.5,2976.5,6.71930118]
[1769039545799,3.35739466,2978.5,2976.5,11.0739108]
[1769039546003,4.30463847,2978.6,2976.6,0.90426827]
[1769039546309,0.43046385,2978.5,2976.7,0.09069076]
[1769039546470,0.43046385,2978.5,2976.8,0.90426827]
[1769039546993,0.43046385,2978.5,2976.9,0.09069076]
[1769039547197,0.94731141,2978.6,2976.8,0.90426827]
[1769039547496,0.94731141,2978.6,2976.9,6.71839832]
[1769039547704,0.94731141,2979.4,2977.3,0.90426827]
[1769039548001,0.94731141,2979.2,2976.9,6.71839832]
[1769039548201,0.94731141,2979.2,2977.4,0.555]
[1769039549331,0.94731141,2979.2,2976.8,0.90426827]
[1769039549332,0.94731141,2978.7,2976.8,3.35927452]
[1769039549505,0.94731141,2978.5,2976.7,3.35937165]
[1769039549667,0.94731141,2978.5,2976.8,3.35928251]
[1769039549863,0.94731141,2978.5,2976.8,6.71859452]
[1769039551016,0.94731141,2978.5,2976.8,10.07790653]
[1769039551177,6.71343694,2979.1,2976.8,10.07790653]
[1769039551178,0.94731141,2979.0,2977.1,1.08139077]
[1769039551379,4.30421374,2979.0,2977.2,7.70842135]
[1769039551693,0.76609322,2978.9,2977.2,7.70842135]
[1769039551872,0.76609322,2978.9,2977.3,0.99070001]
[1769039552077,0.91963168,2979.4,2977.3,1.08139077]
[1769039552295,0.91963168,2979.9,2978.0,0.99070001]
[1769039552495,4.44984213,2980.3,2978.1,1.08139077]
[1769039552701,0.91963168,2980.1,2978.2,1.54570001]
[1769039553515,3.35570469,2980.0,2978.3,6.71524022]
[1769039553808,4.2752675,2980.1,2978.3,6.71524022]
[1769039554177,0.76307904,2980.0,2978.3,6.71524022]
[1769039554910,0.59126122,2980.0,2978.3,6.71524022]
[1769039555080,0.91963168,2979.6,2977.8,0.99070001]
[1769039555408,4.27586127,2979.6,2978.0,6.715855]
[1769039555607,0.91963168,2979.6,2978.0,6.715855]
[1769039555812,0.002,2979.7,2978.0,6.715855]
[1769039556127,3.35806711,2979.7,2978.0,6.715855]
[1769039556792,0.002,2979.7,2978.0,6.715855]
[1769039557783,0.92163168,2979.7,2978.0,3.35789664]
[1769039558076,0.92163168,2979.7,2978.0,7.270855]
[1769039558282,0.92163168,2979.7,2978.1,0.33578966]
[1769039559291,4.27774091,2979.7,2978.2,3.35773285]
[1769039559904,0.92163168,2979.7,2978.2,6.7154657]
[1769039560296,4.2776883,2979.7,2978.2,6.7154657]
[1769039560610,0.42776883,2979.6,2978.2,6.7154657]
[1769039561041,0.42776883,2979.6,2978.3,0.99070001]
[1769039561189,0.002,2979.7,2978.3,0.99070001]
[1769039562517,0.002,2979.7,2978.4,6.71501476]
[1769039562704,0.002,2979.7,2977.9,0.09069076]
[1769039562906,0.92163168,2979.7,2978.0,0.555]
[1769039563106,0.92163168,2979.7,2978.3,3.35761339]
[1769039563308,0.92163168,2979.7,2978.4,0.33576134]
[1769039564627,0.92163168,2979.7,2978.5,3.35739466]
[1769039564922,0.92163168,2979.7,2978.4,3.69323852]
[1769039565124,0.002,2979.7,2978.4,7.0507459]
[1769039565291,0.002,2979.7,2978.4,6.71498456]
[1769039565886,0.002,2979.7,2978.4,7.70568457]
[1769039566523,0.002,2979.7,2978.5,0.001]
[1769039570923,0.92163168,2979.7,2978.5,0.001]
[1769039571130,0.91963168,2979.6,2978.5,0.001]
[1769039571424,0.42777855,2979.5,2978.5,0.001]
[1769039572426,0.91963168,2979.3,2978.5,0.001]
[1769039572924,0.42777855,2979.5,2978.5,0.001]
[1769039573095,3.3562759,2979.5,2978.5,0.001]
[1769039573724,3.35617414,2979.6,2978.5,0.001]
[1769039573927,4.27773211,2979.7,2978.5,0.001]
[1769039575224,0.91963168,2979.6,2978.5,0.001]
[1769039577528,4.27583558,2979.6,2978.5,0.001]
[1769039577828,0.42778356,2979.5,2978.5,0.001]
[1769039578632,0.91963168,2979.4,2977.4,0.99070001]
[1769039578813,0.91963168,2979.4,2977.7,3.35824487]
[1769039579319,0.91963168,2979.4,2977.8,3.35816105]
[1769039579833,0.91963168,2979.2,2977.7,6.71659255]
[1769039580027,0.42761248,2979.1,2977.7,6.71659255]
[1769039580328,0.42761248,2979.1,2977.8,0.96308527]
[1769039580528,10.1040917,2979.5,2977.8,0.96308527]
[1769039581442,10.1040917,2979.5,2977.6,3.35840945]
[1769039581443,0.91540289,2979.2,2977.6,3.35840945]
[1769039581649,3.35671847,2979.1,2977.6,7.2718189]
[1769039581942,4.27212136,2979.1,2977.6,3.91340945]
[1769039582133,0.91540289,2979.0,2977.6,3.91340945]
[1769039582525,0.91540289,2979.0,2977.6,7.2718189]
[1769039583740,3.35664399,2979.2,2977.6,8.20022845]
[1769039583946,3.35664399,2979.2,2977.7,0.92840955]
[1769039584154,0.34473348,2979.1,2977.7,0.92840955]
[1769039585720,3.35649313,2979.3,2977.7,0.92840955]
[1769039586247,4.27182321,2979.4,2977.7,0.92840955]
[1769039586248,4.27180736,2979.4,2977.8,6.71636778]
[1769039586420,4.27180736,2979.4,2977.8,7.64477733]
[1769039587823,7.62821183,2979.4,2977.8,7.64477733]
[1769039588656,7.62821183,2979.4,2977.9,0.92840955]
[1769039588835,1.43759954,2979.3,2977.9,1.35706889]
[1769039590224,2.35300243,2979.3,2977.9,1.35706889]
[1769039590733,5.70951776,2979.3,2978.0,3.35795836]
[1769039591121,0.002,2979.2,2978.0,3.35795836]
[1769039591324,0.90879012,2979.2,2978.1,0.37503785]
[1769039591737,0.90879012,2979.2,2977.9,4.2874566]
[1769039591936,0.90879012,2979.2,2978.0,0.92840955]
[1769039593039,0.90879012,2979.2,2978.0,4.28630134]
[1769039593654,0.90879012,2979.2,2978.0,0.92840955]
[1769039593860,3.35865251,2979.2,2978.0,0.92840955]
[1769039594158,3.35865251,2979.2,2977.9,0.001]
[1769039594159,0.91540289,2979.1,2977.9,0.001]
[1769039594377,0.91540289,2978.6,2977.1,3.35886455]
[1769039594542,0.09069076,2978.7,2976.6,3.35948932]
[1769039594543,0.91540289,2978.4,2976.6,0.92840955]
[1769039594739,0.91540289,2978.4,2977.2,3.35884386]
[1769039595065,0.91540289,2978.6,2977.2,3.35882188]
[1769039595267,0.91540289,2978.6,2977.3,3.35874397]
[1769039595436,0.91540289,2978.6,2977.4,0.3358744]
[1769039596765,0.91540289,2978.9,2977.5,0.92840955]
[1769039596963,4.27239986,2978.9,2977.5,4.28687135]
[1769039597164,4.27239986,2978.9,2977.5,0.92840955]
[1769039597345,4.27239986,2978.9,2977.5,4.28688836]
[1769039597346,0.76292585,2978.8,2977.5,4.28688836]
[1769039597843,0.002,2979.2,2978.2,0.92840955]
[1769039598051,0.002,2979.2,2978.4,0.92840955]
[1769039598956,0.002,2979.2,2978.0,4.28626642]
[1769039599169,0.002,2979.2,2978.2,0.555]
[1769039602168,0.91540289,2979.1,2977.2,0.92840955]
[1769039602349,0.91540289,2979.1,2977.5,3.35847521]
[1769039603176,0.91540289,2978.9,2977.9,0.001]
[1769039603379,0.91540289,2978.9,2977.3,0.555]
[1769039604072,0.91540289,2978.9,2974.9,0.001]
[1769039604073,0.91540289,2978.9,2976.5,0.92840955]
[1769039604266,0.91540289,2978.5,2976.7,0.92840955]
[1769039606142,4.27280554,2978.5,2976.8,6.71862402]
[1769039606346,3.35740265,2978.5,2976.9,0.92840955]
[1769039606684,0.42728055,2978.4,2977.0,1.3870335]
[1769039607179,0.42728055,2978.4,2977.1,0.92840955]
[1769039607487,7.62966697,2978.8,2977.1,0.92840955]
[1769039607842,4.27253493,2978.8,2977.1,0.92840955]
[1769039608472,7.62966697,2978.8,2977.2,3.35886067]
[1769039608776,1.67836959,2978.7,2977.2,3.35886067]
[1769039608990,1.67836959,2978.7,2977.2,4.28727022]
[1769039609271,1.67836959,2978.7,2976.2,1.91e-06]
[1769039609272,0.91540289,2978.3,2976.3,4.28823585]
[1769039609476,0.91540289,2978.3,2976.8,3.35926719]
[1769039610478,0.91540289,2978.3,2976.9,3.35919169]
[1769039610687,0.91540289,2978.1,2976.7,3.35940498]
[1769039611496,0.91540289,2978.1,2976.6,1.48340955]
[1769039611666,0.91540289,2978.1,2976.6,0.555]
[1769039611868,0.76308686,2978.0,2976.6,3.91452921]
[1769039612066,0.76308686,2978.0,2976.6,0.555]
[1769039612268,0.9501876,2977.5,2976.2,1.91e-06]
[1769039612692,0.9501876,2977.3,2976.2,1.91e-06]
[1769039612988,0.76674577,2977.2,2976.2,1.91e-06]
[1769039613177,1.71693337,2977.2,2976.2,1.91e-06]
[1769039613888,0.76674577,2977.2,2976.2,1.91e-06]
[1769039614093,3.3585754,2977.5,2976.2,1.91e-06]
[1769039614594,0.9501876,2977.9,2976.2,1.91e-06]
[1769039614786,0.9501876,2977.8,2976.2,1.91e-06]
[1769039614985,0.9501876,2977.8,2976.9,0.001]
[1769039615186,0.76663298,2977.7,2976.2,1.91e-06]
[1769039616574,3.35807112,2977.9,2976.2,1.91e-06]
[1769039616776,7.6658788,2978.1,2976.2,0.90893701]
[1769039617169,0.9501876,2978.0,2976.2,0.90893701]
[1769039618673,3.35807112,2977.9,2976.3,3.35987635]
[1769039618884,6.71614224,2977.9,2976.3,4.26881145]
[1769039619086,0.76663298,2977.8,2976.3,7.6286878]
[1769039620102,0.76663298,2977.8,2976.3,6.7197527]
[1769039620325,0.9501876,2978.6,2976.8,0.9089351]
[1769039620777,0.9501876,2978.6,2977.0,0.9089351]
[1769039620976,0.9501876,2978.6,2977.1,1.4639351]
[1769039621378,3.35700557,2978.9,2977.2,0.9089351]
[1769039621605,0.9501876,2978.8,2977.2,0.9089351]
[1769039621813,0.9501876,2978.8,2977.3,0.555]
[1769039622311,0.9501876,2978.8,2977.2,1.4639351]
[1769039622520,0.9501876,2978.8,2977.2,0.555]
[1769039622674,0.9501876,2978.1,2976.2,1.91e-06]
[1769039622880,0.9501876,2977.9,2976.3,0.555]
[1769039625275,0.9501876,2977.9,2976.4,6.71952694]
[1769039626918,0.9501876,2977.9,2976.5,0.9089351]
[1769039627093,4.30783098,2978.3,2976.5,0.9089351]
[1769039627293,3.35776816,2978.2,2976.6,6.71907544]
[1769039627494,3.35776816,2978.2,2976.6,7.62801054]
[1769039627700,0.002,2977.7,2976.6,4.26847282]
[1769039629314,0.002,2977.7,2976.6,7.62801054]
[1769039631716,0.002,2977.7,2976.6,6.71907544]
[1769039631928,0.002,2977.7,2976.7,0.9089351]
[1769039633235,1.10212043,2978.7,2977.0,0.99962586]
[1769039633532,0.9501876,2978.8,2977.3,6.7174957]
[1769039634202,4.30727126,2978.8,2977.3,3.35874785]
[1769039634932,4.30727126,2978.8,2977.3,6.7174957]
[1769039635433,0.9501876,2978.8,2977.3,7.6264308]
[1769039636724,4.30733681,2978.8,2977.3,7.6264308]
[1769039636953,0.76643646,2978.7,2977.3,7.6264308]
[1769039638435,1.71662406,2978.7,2977.3,4.26768295]
[1769039638635,0.9501876,2978.7,2977.3,4.26768295]
[1769039639043,4.12518369,2980.5,2977.3,4.26768295]
[1769039639047,4.12445173,2980.7,2977.3,4.26768295]
[1769039639048,0.002,2980.4,2978.9,0.9089351]
[1769039639262,0.002,2980.4,2979.1,0.9089351]
[1769039639543,0.17676582,2980.4,2979.4,0.09069076]
[1769039639742,0.002,2980.4,2979.4,0.99962586]
[1769039640034,0.002,2981.3,2980.0,0.98666025]
[1769039640238,0.002,2981.3,2979.4,1.00749182]
[1769039640239,0.97501109,2981.1,2979.5,1.47791473]
[1769039640426,0.97501109,2980.9,2979.1,6.71343694]
[1769039640739,0.97501109,2980.7,2979.1,3.35671847]
[1769039641039,0.97501109,2980.5,2979.1,6.71343694]
[1769039641542,0.002,2979.9,2979.1,6.71343694]
[1769039644943,0.002,2979.9,2979.0,3.35679281]
[1769039644944,0.9791947,2979.9,2979.0,3.35679281]
[1769039645311,0.9791947,2979.9,2979.0,6.71362396]
[1769039646813,0.9791947,2979.9,2978.4,10.07252214]
[1769039647041,0.002,2979.9,2978.5,0.93935413]
[1769039647917,0.09069076,2980.8,2978.5,0.93935413]
[1769039647918,0.002,2981.3,2980.3,0.93935413]
[1769039648218,0.002,2982.1,2980.5,0.93935413]
[1769039648421,0.002,2982.1,2980.6,1.20715353]
[1769039648649,0.002,2982.1,2980.8,0.93935413]
[1769039648949,0.002,2982.1,2980.1,1.30047763]
[1769039648950,0.002,2982.1,2980.9,6.70938306]
[1769039649316,0.002,2982.1,2980.9,3.35469153]
[1769039649741,0.002,2982.1,2980.9,6.70938306]
[1769039650912,0.002,2982.1,2980.6,11.00444167]
[1769039651310,0.9771947,2981.9,2980.0,0.09069076]
[1769039651514,1.06788546,2981.5,2979.2,0.93935413]
[1769039651709,1.06788546,2981.5,2980.3,3.35528651]
[1769039652150,0.67622306,2981.8,2979.7,0.93935413]
[1769039652356,0.09069076,2981.9,2980.4,3.35517867]
[1769039652652,0.09069076,2981.9,2980.5,3.35510436]
[1769039652653,1.06788546,2981.9,2980.5,3.35510436]
[1769039653019,1.06788546,2981.9,2980.2,6.71095898]
[1769039653316,0.002,2981.3,2980.2,6.71095898]
[1769039653628,0.002,2981.3,2980.2,3.35547949]
[1769039654011,0.002,2981.3,2980.2,6.71095898]
[1769039654210,0.002,2981.3,2980.2,7.65031311]
[1769039654465,0.002,2981.3,2980.3,0.93935413]
[1769039655332,0.002,2981.3,2980.4,3.35525432]
[1769039655776,0.002,2981.3,2980.4,6.71050864]
[1769039657334,0.002,2981.3,2980.4,3.35525432]
[1769039657759,0.002,2981.3,2980.4,6.71050864]
[1769039658258,0.002,2981.3,2980.4,10.06576296]
[1769039658462,0.002,2981.3,2980.4,6.71050864]
[1769039659190,0.002,2981.3,2980.5,0.93935413]
[1769039660390,0.002,2982.1,2980.5,0.93935413]
[1769039661042,0.002,2982.1,2980.4,13.42101728]
[1769039661043,0.002,2982.1,2980.7,0.93935413]
[1769039663040,0.09069076,2981.8,2980.1,4.77935413]
[1769039663259,0.09069076,2981.4,2980.1,0.93935413]
[1769039663548,0.09069076,2981.4,2980.4,3.35515469]
[1769039664277,0.09069076,2981.6,2980.4,3.35515469]
[1769039664574,0.09069076,2981.6,2980.4,0.33551547]
[1769039664777,0.09069076,2981.6,2980.3,3.35532992]
[1769039664974,0.09069076,2981.6,2980.5,3.35506358]
[1769039665139,0.09069076,2981.6,2980.2,6.71095898]
[1769039665562,0.09069076,2981.6,2980.6,0.001]
[1769039665937,7.77570885,2981.6,2980.6,0.001]
[1769039666149,0.09069076,2981.4,2980.6,0.001]
[1769039667044,1.06788546,2981.4,2980.6,0.001]
[1769039667779,0.77757089,2981.5,2980.6,0.001]
[1769039668067,4.33256253,2982.1,2980.6,0.001]
[1769039668280,0.002,2982.1,2980.6,0.001]
[1769039668453,3.35537858,2982.1,2980.6,0.001]
[1769039668987,0.33553786,2982.0,2980.6,0.001]
[1769039669613,3.68900348,2982.0,2980.6,0.001]
[1769039669895,0.33553786,2982.0,2980.6,0.94035413]
[1769039670193,0.002,2982.1,2980.6,0.94035413]
[1769039670564,0.002,2982.1,2979.8,0.93935413]
[1769039670565,0.09069076,2981.3,2979.8,0.93935413]
[1769039670790,0.09069076,2980.9,2979.8,3.35584806]
[1769039670972,0.09069076,2980.7,2979.6,3.35610421]
[1769039671173,0.09069076,2980.9,2979.7,3.35603892]
[1769039671374,10.24,2981.6,2979.8,0.94594732]
[1769039671575,1.024,2981.5,2979.9,4.30173134]
[1769039671895,3.35412893,2981.4,2980.0,3.35560475]
[1769039672194,6.70791376,2981.6,2980.0,3.35560475]
[1769039672386,3.35395688,2981.6,2980.0,6.71130944]
[1769039672586,0.67077853,2981.5,2980.0,6.71130944]
[1769039672892,0.67077853,2981.5,2980.1,0.94594732]
[1769039673075,6.70713302,2981.9,2980.1,0.94594732]
[1769039673809,6.70713302,2981.9,2980.2,6.71095898]
[1769039674575,3.35356651,2981.9,2980.2,7.6569063]
[1769039674778,7.68727967,2982.0,2980.3,0.94594732]
[1769039674979,0.77799704,2981.9,2980.3,0.94594732]
[1769039676208,3.35367898,2981.8,2980.4,3.35525432]
[1769039676584,1.07098181,2981.7,2980.1,3.35558876]
[1769039676788,1.07098181,2981.7,2979.9,0.94594732]
[1769039676990,1.07098181,2981.7,2980.2,3.35542456]
[1769039677191,0.77783398,2981.6,2980.4,0.001]
[1769039678181,3.35401643,2981.5,2980.4,0.001]
[1769039678518,0.77783398,2981.6,2980.4,0.001]
[1769039679009,4.13176394,2981.6,2980.4,0.001]
[1769039680181,7.4856939,2981.6,2980.4,0.001]
[1769039680378,0.74876939,2981.5,2980.4,0.001]
[1769039682089,1.72906044,2981.5,2980.4,0.001]
[1769039682295,3.35412893,2981.4,2980.4,0.001]
[1769039683531,0.74876939,2981.5,2980.4,0.001]
[1769039683832,3.35403184,2981.5,2980.4,0.001]
[1769039685010,6.70780974,2981.6,2980.4,0.001]
[1769039688934,0.98029105,2981.0,2979.5,0.94594732]
[1769039689236,0.09069076,2981.3,2980.0,4.30155984]
[1769039689237,0.98029105,2981.3,2980.0,4.30155984]
[1769039689439,0.2335703,2981.4,2980.4,0.001]
[1769039689645,1.54542035,2981.4,2980.0,0.94594732]
[1769039690450,3.35424143,2981.3,2980.0,0.94594732]
[1769039690760,3.35424143,2981.3,2980.0,4.30162677]
[1769039691323,1.31185005,2981.4,2980.1,0.94594732]
[1769039691621,0.002,2981.7,2980.5,0.94594732]
[1769039691941,0.98029105,2981.5,2980.0,4.30157712]
[1769039692264,0.09069076,2981.6,2980.1,0.94594732]
[1769039692550,0.002,2981.7,2980.5,0.94594732]
[1769039693638,0.002,2981.7,2980.7,0.94594732]